bitfinex-derivatives/quotes_ETHF0:USTF0_20240822
["timestamp","ask_amount","ask_price","bid_price","bid_amount"]
[1724334412600,5.16313,2614.6,2614.5,1e-08]
[1724334412797,10.16313,2614.6,2614.5,1e-08]
[1724334413218,11.11908,2614.6,2614.5,1e-08]
[1724334413398,13.79290635,2614.6,2614.5,8.09e-06]
[1724334413601,20.67390635,2614.6,2614.5,8.09e-06]
[1724334413806,18.24008,2614.6,2614.5,8.09e-06]
[1724334414002,18.24008,2614.6,2612.7,0.38264]
[1724334414003,0.38258,2613.2,2612.7,0.38264]
[1724334414203,3.2078,2613.3,2612.4,0.3798]
[1724334414502,0.38261,2613.0,2612.6,0.38840064]
[1724334414808,0.38263,2612.9,2612.6,0.00574064]
[1724334415007,0.00273413,2612.9,2612.6,0.00933137]
[1724334415709,0.38264,2612.8,2612.6,0.00933137]
[1724334415896,3.2078,2612.7,2612.6,0.00933137]
[1724334416107,3.2078,2612.7,2612.6,0.39200137]
[1724334416294,3.2078,2612.7,2612.6,0.00933137]
[1724334416495,0.00273413,2612.9,2612.6,0.00933137]
[1724334416899,0.00273413,2612.9,2612.8,0.38264]
[1724334417109,3.21053413,2612.9,2612.8,0.38264]
[1724334417308,0.00273413,2612.9,2612.6,0.39199137]
[1724334417509,0.00273413,2612.9,2612.6,0.00933137]
[1724334417717,0.00273413,2612.9,2612.8,0.38264]
[1724334418009,0.00273413,2612.9,2612.8,4.20984]
[1724334418402,0.00273413,2612.9,2612.8,13.37424]
[1724334418403,4.13e-06,2612.9,2612.8,13.37424]
[1724334418601,0.00574064,2613.1,2613.0,2.29567]
[1724334418602,4.77e-06,2613.1,2613.0,2.29567]
[1724334418815,4.77e-06,2613.1,2613.0,11.12287]
[1724334419058,3.2078,2614.2,2613.0,8.8272]
[1724334419309,3.2078,2613.3,2612.7,0.75955]
[1724334419613,0.00372718,2613.3,2612.9,0.38261]
[1724334419808,0.00372718,2613.3,2612.8,3.8272]
[1724334420015,0.00372718,2613.3,2612.8,3.2078]
[1724334420016,0.00946782,2613.3,2612.8,3.2078]
[1724334420202,0.00946782,2613.3,2612.7,0.3769]
[1724334421103,3.2078,2613.1,2612.7,0.3769]
[1724334421326,3.2078,2612.8,2612.6,0.00933137]
[1724334421507,3.2078,2613.2,2612.6,0.00933137]
[1724334421915,0.00946782,2613.3,2612.6,0.00933137]
[1724334422113,3.2078,2613.1,2612.6,0.00933137]
[1724334422303,0.00946782,2613.3,2612.7,3.8272]
[1724334422504,0.00946782,2613.3,2613.2,0.38258]
[1724334422704,0.00946782,2613.3,2613.2,8.8264]
[1724334422917,3.21726782,2613.3,2613.2,3.8264]
[1724334423216,3.21726782,2613.3,2612.6,0.00933137]
[1724334423217,0.38265,2612.7,2612.6,0.00933137]
[1724334423406,3.59045,2612.7,2612.6,0.00933137]
[1724334423807,3.2078,2613.1,2612.6,8.83653137]
[1724334424003,3.2078,2613.1,2612.6,0.00933137]
[1724334424206,3.2078,2612.8,2612.6,0.00933137]
[1724334425111,0.38265,2612.7,2612.6,1.37e-06]
[1724334425416,4.20985,2612.7,2612.6,1.37e-06]
[1724334425600,0.38265,2612.7,2612.6,1.37e-06]
[1724334426010,4.20985,2612.7,2612.6,1.37e-06]
[1724334426211,3.8272,2612.7,2612.6,1.37e-06]
[1724334426512,3.2078,2612.8,2612.6,1.37e-06]
[1724334426716,3.59045,2612.8,2612.6,1.37e-06]
[1724334426904,3.2078,2612.8,2612.6,1.37e-06]
[1724334427214,0.00946782,2613.3,2612.7,3.8272]
[1724334427417,0.00946782,2613.3,2612.7,4.2123]
[1724334427723,0.00946782,2613.3,2612.7,0.3851]
[1724334427913,0.39204782,2613.3,2612.7,0.3851]
[1724334428113,0.38259,2613.2,2612.7,0.3851]
[1724334428410,0.00946782,2613.3,2612.7,0.3851]
[1724334428609,0.00946782,2613.3,2612.8,0.3852]
[1724334429008,3.59039,2613.2,2612.8,0.3852]
[1724334429209,3.2078,2613.2,2612.7,0.3851]
[1724334429417,0.38265,2612.7,2612.6,1.37e-06]
[1724334429807,0.38265,2612.8,2612.6,1.37e-06]
[1724334430008,0.38265,2612.7,2612.6,1.37e-06]
[1724334430317,0.38268,2612.5,2612.4,2.01e-06]
[1724334430513,3.59048,2612.5,2612.4,2.01e-06]
[1724334430849,7.41848,2612.5,2612.4,2.01e-06]
[1724334431520,7.41848,2612.5,2612.4,0.00378144]
[1724334431914,0.38286,2611.4,2611.0,3.2078]
[1724334432219,0.38286,2611.4,2610.7,0.38294]
[1724334432220,3.2078,2611.6,2610.7,3.2078]
[1724334432439,3.2078,2611.9,2611.4,0.38284]
[1724334432611,3.2078,2612.2,2611.8,0.38277]
[1724334432915,0.00276647,2612.2,2612.1,0.38274]
[1724334433308,3.2078,2613.3,2612.1,5.0]
[1724334433508,3.2078,2613.3,2612.7,3.2078]
[1724334433708,3.2078,2613.3,2612.8,0.3615]
[1724334433912,0.38258,2613.2,2612.8,0.3615]
[1724334434141,3.21354064,2613.3,2612.8,0.3615]
[1724334434313,3.21760287,2613.3,2612.9,3.8272]
[1724334434618,3.21760287,2613.3,2613.0,3.2078]
[1724334434619,0.00980287,2613.3,2613.0,3.2078]
[1724334434805,0.00980287,2613.3,2613.2,0.38258]
[1724334435013,3.2078,2614.4,2613.2,3.8264]
[1724334435208,3.2078,2614.4,2613.0,8.2078]
[1724334435209,6.2778,2614.4,2613.1,3.2078]
[1724334435414,0.38252,2613.7,2613.1,3.2078]
[1724334435630,3.2078,2614.1,2613.1,3.2078]
[1724334435921,3.2078,2613.8,2612.9,0.3835]
[1724334436223,3.2078,2613.8,2613.3,0.00574064]
[1724334436224,0.38255,2613.4,2613.3,0.00574064]
[1724334436415,0.38251,2613.7,2613.3,3.83214064]
[1724334436614,0.38251,2613.7,2613.3,0.00574064]
[1724334436918,0.00574064,2613.9,2613.4,3.8264]
[1724334437117,5.85354064,2613.9,2613.3,0.00574064]
[1724334437319,0.38251,2613.7,2613.3,0.00574064]
[1724334437646,0.00574064,2613.9,2613.5,0.38254]
[1724334437817,0.00574064,2613.9,2613.5,0.38253]
[1724334438017,0.00574064,2613.9,2613.6,4.2]
[1724334438219,3.21354064,2613.9,2613.6,0.3744]
[1724334438423,0.38255,2613.4,2613.3,0.00574064]
[1724334438717,3.2078,2613.8,2613.3,0.00574064]
[1724334439116,0.00574064,2613.9,2613.4,3.8264]
[1724334439314,0.00574064,2613.9,2613.4,4.2008]
[1724334439624,0.38249,2613.8,2613.5,0.3593]
[1724334439915,0.00574064,2613.9,2613.5,4.1857]
[1724334440115,0.00574064,2613.9,2613.6,3.8256]
[1724334440305,0.00574064,2613.9,2613.7,0.3607]
[1724334440510,0.00574064,2613.9,2613.7,4.19042829]
[1724334440710,0.00574064,2613.9,2613.8,3.8256]
[1724334441108,0.00574064,2613.9,2613.8,8.8256]
[1724334441518,0.00574064,2613.9,2613.8,3.8256]
[1724334441720,0.00574064,2613.9,2613.8,8.8256]
[1724334441924,0.00574064,2613.9,2613.8,3.8256]
[1724334442218,0.38822064,2613.9,2613.8,3.8256]
[1724334442422,0.00574064,2613.9,2613.8,3.8256]
[1724334442716,0.38822064,2613.9,2613.8,3.8256]
[1724334443116,0.00574064,2613.9,2613.8,3.8256]
[1724334443311,0.00574064,2613.9,2613.8,9.20809]
[1724334444015,0.00395939,2614.1,2614.0,0.38246]
[1724334444216,0.38237,2614.7,2614.3,0.38241]
[1724334444439,0.38237,2614.7,2613.7,3.57262829]
[1724334444440,2.7,2614.7,2614.1,0.3662]
[1724334444620,3.08237,2614.7,2614.3,0.38241]
[1724334444813,3.08237,2614.7,2614.2,4.176]
[1724334444814,2.7,2614.7,2614.2,4.176]
[1724334445013,2.7,2614.7,2614.6,0.38238]
[1724334445227,2.70970651,2614.7,2614.3,7.0326]
[1724334445820,2.70970651,2614.7,2614.4,4.2072]
[1724334446025,2.70970651,2614.7,2614.5,0.38239]
[1724334446222,0.00970651,2614.7,2614.6,0.38238]
[1724334446422,0.00970651,2614.7,2614.6,4.20718]
[1724334446612,0.38223,2615.7,2614.6,12.41498]
[1724334446812,0.95533,2616.3,2615.7,0.38221]
[1724334447120,2.6,2616.3,2615.3,3.2078]
[1724334447415,2.6,2616.3,2615.6,3.2078]
[1724334447626,2.60369951,2616.3,2616.0,0.38216]
[1724334447854,2.60369951,2616.3,2615.9,3.2078]
[1724334448031,0.86939951,2616.3,2616.2,3.58994]
[1724334448527,0.86939951,2616.3,2616.2,12.41234]
[1724334448823,3.91,2616.9,2616.6,0.38208]
[1724334449013,1.24,2616.9,2616.3,3.8216]
[1724334449211,1.24,2616.9,2616.5,3.2078]
[1724334449410,1.24,2616.9,2616.6,3.8216]
[1724334449624,1.24,2616.9,2616.7,4.20366]
[1724334449923,1.24458085,2616.9,2616.8,0.38206]
[1724334450221,1.24458085,2616.9,2616.8,3.8216]
[1724334450424,2.06,2617.5,2616.8,8.2078]
[1724334450723,2.06,2617.5,2616.0,6.66832]
[1724334450724,1.85,2617.5,2617.1,3.2078]
[1724334450918,1.85,2617.5,2617.2,3.8208]
[1724334451118,3.05515927,2617.5,2616.7,3.2078]
[1724334451316,3.43711927,2617.5,2616.7,3.2078]
[1724334451521,0.38198,2617.4,2616.4,3.2078]
[1724334451720,2.59,2617.4,2617.0,0.38202]
[1724334451919,2.59,2617.4,2617.1,3.8208]
[1724334452231,2.59,2617.4,2616.8,0.00574064]
[1724334452232,1.20515927,2617.3,2616.8,0.00574064]
[1724334452426,0.38201,2617.2,2616.8,0.00574064]
[1724334452624,2.97201,2617.2,2616.8,0.00574064]
[1724334452822,2.59,2617.2,2616.9,3.8208]
[1724334453122,2.59,2617.2,2616.8,0.00574064]
[1724334453330,2.59,2617.2,2616.8,4.20859064]
[1724334453530,2.59,2617.2,2616.9,3.8208]
[1724334453729,0.38202,2617.1,2616.8,0.00574064]
[1724334454031,2.56,2617.1,2616.8,3.82654064]
[1724334454220,2.56,2617.1,2616.9,3.8216]
[1724334454446,2.56,2617.1,2616.8,0.00574064]
[1724334454447,0.38203,2617.0,2616.8,0.00574064]
[1724334454722,0.38203,2617.0,2616.8,3.82734064]
[1724334454723,2.77,2617.0,2616.8,3.82734064]
[1724334454918,1.58719927,2616.9,2616.8,0.00574064]
[1724334455122,6.02310927,2616.9,2616.8,6.4e-07]
[1724334455322,6.02310927,2616.9,2615.6,0.00439872]
[1724334455323,0.38217,2616.1,2615.6,0.00439872]
[1724334455633,1.20515927,2616.3,2615.9,0.38218]
[1724334455817,1.20515927,2616.1,2615.6,0.00439872]
[1724334456019,1.58737927,2615.7,2615.6,0.00439872]
[1724334456227,1.20515927,2615.7,2615.6,0.00439872]
[1724334456630,0.00574064,2615.9,2615.6,3.82759872]
[1724334456823,1.58735927,2615.8,2615.6,0.00439872]
[1724334457127,1.20515927,2615.8,2615.6,0.00439872]
[1724334457828,0.00574064,2615.9,2615.8,0.3822]
[1724334458028,0.00574064,2615.9,2615.7,3.8232]
[1724334458227,0.00574064,2615.9,2615.8,3.8232]
[1724334458433,0.00574064,2615.9,2615.7,3.2078]
[1724334458727,0.00574064,2615.9,2615.7,7.031]
[1724334458928,0.00574064,2615.9,2615.8,4.2054]
[1724334459322,0.00574064,2615.9,2615.8,9.2054]
[1724334461330,0.00574064,2615.9,2615.8,4.2054]
[1724334461722,0.00574064,2615.9,2615.8,7.4132]
[1724334462136,0.00574064,2615.9,2615.8,12.4132]
[1724334462531,6.4e-07,2615.9,2615.8,13.36871]
[1724334462834,0.38202,2617.1,2615.8,12.031]
[1724334463031,1.20515991,2616.9,2616.8,0.38205]
[1724334463541,1.20515991,2616.9,2616.8,3.58985]
[1724334463831,0.00574064,2617.1,2616.8,7.0294]
[1724334464041,1.20515991,2617.0,2616.9,3.58984]
[1724334464226,0.00574064,2617.1,2617.0,0.38203]
[1724334464542,0.00574064,2617.1,2617.0,4.20283]
[1724334464842,0.00574064,2617.1,2617.0,9.20283]
[1724334466034,0.00280585,2617.5,2617.4,0.38197]
[1724334466235,0.00280585,2617.5,2616.9,3.2078]
[1724334466236,0.38197,2617.4,2617.1,3.2078]
[1724334466441,1.20515991,2617.4,2617.1,3.2078]
[1724334466646,0.00280585,2617.5,2617.3,0.38198]
[1724334466832,0.00280585,2617.5,2617.4,3.58977]
[1724334467028,0.00280585,2617.5,2617.4,3.8208]
[1724334467342,1.20796576,2617.5,2617.1,3.2078]
[1724334467536,1.20515991,2617.2,2617.1,3.2078]
[1724334467749,1.20515991,2617.4,2617.1,3.2078]
[1724334468045,1.58712991,2617.4,2617.0,0.38202]
[1724334468232,0.38203,2617.0,2616.6,0.00574064]
[1724334468436,1.20515991,2617.0,2616.7,0.38206]
[1724334468735,1.20515991,2617.0,2616.6,0.38782064]
[1724334468736,1.58718991,2617.0,2616.6,0.38782064]
[1724334469032,1.20515991,2617.0,2616.7,0.38207]
[1724334469432,1.20515991,2617.0,2616.6,0.00574064]
[1724334469642,1.20515991,2617.0,2616.6,3.21354064]
[1724334469827,1.20515991,2617.0,2616.9,0.38204]
[1724334470038,1.20515991,2617.0,2616.7,0.38207]
[1724334470240,1.20515991,2617.0,2616.6,0.00574064]
[1724334470438,1.58722991,2616.7,2616.6,0.00574064]
[1724334470647,1.20515991,2616.7,2615.6,4.19039872]
[1724334470852,1.20515991,2616.1,2615.6,4.19039872]
[1724334471042,1.20515991,2616.1,2615.7,0.38221]
[1724334471345,1.58731991,2616.1,2615.7,0.38221]
[1724334471548,1.20515991,2616.1,2615.6,0.01013936]
[1724334472546,1.20515991,2616.1,2615.9,0.38218]
[1724334472750,1.20515991,2616.1,2616.0,0.38217]
[1724334473051,0.00574064,2616.2,2616.1,0.38216]
[1724334473245,1.21090055,2616.2,2616.1,0.38216]
[1724334473651,0.00574064,2616.2,2616.1,4.20456]
[1724334475051,1.21090055,2616.2,2615.6,4.19613936]
[1724334475237,0.00574064,2616.2,2615.7,3.2078]
[1724334475442,0.00574064,2616.2,2616.1,0.38216]
[1724334475645,0.00574064,2616.2,2616.1,4.20456]
[1724334475854,0.00574064,2616.2,2616.1,9.20456]
[1724334476340,0.00280585,2617.5,2616.2,0.95536]
[1724334476547,0.00280585,2617.5,2616.9,0.38204]
[1724334476548,0.7496,2617.4,2616.9,0.38204]
[1724334476748,0.7496,2617.4,2616.5,4.16305]
[1724334476749,1.20515991,2617.1,2617.0,0.38203]
[1724334476954,1.20515991,2616.9,2616.8,0.38206]
[1724334477157,1.20515991,2617.1,2617.0,0.38203]
[1724334477546,1.20515991,2617.1,2616.8,0.00574064]
[1724334477746,1.20515991,2616.9,2616.8,0.38779064]
[1724334477958,1.20515991,2616.9,2616.8,0.00574064]
[1724334478358,1.58719991,2616.9,2616.8,0.00574064]
[1724334479048,2.54230991,2616.9,2616.8,0.00574064]
[1724334479283,0.3821,2616.5,2616.2,0.38213]
[1724334479452,1.20515991,2616.4,2616.2,0.38213]
[1724334479648,1.20515991,2616.4,2616.3,0.38213]
[1724334479850,0.3849,2616.8,2616.4,0.3821]
[1724334480050,0.3849,2616.8,2615.7,4.16334]
[1724334480051,1.20515991,2616.6,2616.5,0.3821]
[1724334480245,1.20515991,2616.6,2616.4,0.3821]
[1724334480453,1.20515991,2616.6,2616.5,0.3821]
[1724334480755,0.382,2617.2,2616.4,4.2037]
[1724334480959,1.20515991,2616.6,2616.3,0.00574064]
[1724334481154,1.20515991,2616.6,2616.4,0.38211]
[1724334481345,1.20515991,2616.6,2616.3,0.00574064]
[1724334481346,1.20515991,2616.6,2616.5,0.3821]
[1724334481551,0.00574064,2617.3,2616.5,8.2078]
[1724334481856,0.00574064,2617.3,2616.4,4.77686]
[1724334481857,1.20515991,2617.2,2616.8,3.2078]
[1724334482157,0.00574064,2617.3,2616.6,0.365]
[1724334482158,1.20515991,2617.1,2617.0,0.38203]
[1724334482352,1.20515991,2617.1,2616.9,0.38203]
[1724334482947,1.20515991,2617.0,2616.5,3.2078]
[1724334483354,1.20515991,2617.0,2616.9,0.38204]
[1724334483559,0.3633,2617.1,2617.0,0.38203]
[1724334483861,0.00574064,2617.3,2617.2,0.382]
[1724334484050,0.00574064,2617.3,2617.2,12.4106]
[1724334484252,6.4e-07,2617.3,2617.2,13.3656]
[1724334484580,3.2078,2618.4,2617.8,0.3819]
[1724334484788,1.20515991,2618.0,2617.1,3.5718]
[1724334485067,1.20515991,2617.9,2617.1,3.5718]
[1724334485259,1.20515991,2617.9,2617.4,3.2078]
[1724334485559,1.21537315,2617.9,2617.8,0.38191]
[1724334486118,1.21537315,2617.9,2617.4,3.21635425]
[1724334486358,1.21537315,2617.9,2617.4,0.00855425]
[1724334486359,1.20515991,2617.7,2617.4,0.00855425]
[1724334486557,0.01021324,2617.9,2617.7,0.38192]
[1724334486558,1.21537315,2617.9,2617.7,0.38192]
[1724334487159,4.41295991,2617.8,2617.4,0.00855425]
[1724334487362,1.20515991,2617.5,2617.4,0.00855425]
[1724334487552,1.58710991,2617.5,2617.4,0.00855425]
[1724334488057,1.20515991,2617.5,2617.4,0.00855425]
[1724334488460,0.3593,2617.7,2617.5,0.38195]
[1724334488657,0.01021324,2617.9,2617.5,3.82]
[1724334488967,0.01021324,2617.9,2617.7,0.38192]
[1724334489261,1.20515991,2617.7,2617.6,0.38193]
[1724334489462,0.01021324,2617.9,2617.4,0.00855425]
[1724334489663,1.21537315,2617.9,2617.8,0.38191]
[1724334489856,1.21537315,2617.9,2617.4,0.00855425]
[1724334490056,0.38191,2617.8,2617.4,0.00855425]
[1724334490255,1.58710991,2617.5,2617.4,0.00855425]
[1724334490567,1.20515991,2617.5,2617.4,0.00855425]
[1724334490758,1.20515991,2617.5,2617.4,0.39052425]
[1724334490962,0.3474,2617.7,2617.4,3.82935425]
[1724334491164,1.20515991,2617.7,2617.6,0.38194]
[1724334491353,1.20515991,2617.7,2617.5,0.38194]
[1724334491553,1.20515991,2617.5,2617.4,0.00855425]
[1724334491767,1.58710991,2617.5,2617.4,0.00855425]
[1724334492262,4.79490991,2617.5,2617.4,0.00855425]
[1724334493872,5.16780991,2617.5,2617.4,0.00855425]
[1724334494284,0.95503,2617.2,2616.4,5.351]
[1724334494572,0.95503,2617.2,2616.0,2.98084009]
[1724334494573,0.38208,2616.7,2616.2,0.38213]
[1724334494867,3.2078,2617.0,2616.0,2.98084009]
[1724334495070,5.18491305,2617.0,2616.1,0.38215]
[1724334495268,0.38208,2616.7,2616.3,0.00572946]
[1724334495660,0.38209,2616.6,2616.3,0.00572946]
[1724334495865,0.75499,2616.6,2616.3,0.00572946]
[1724334496065,0.3821,2616.5,2616.3,0.00572946]
[1724334496263,0.3729,2616.6,2616.3,0.00572946]
[1724334496469,7.2968,2617.0,2616.3,0.00572946]
[1724334496470,4.089,2617.0,2616.3,0.00572946]
[1724334496769,0.3729,2616.8,2616.4,0.3821]
[1724334497069,0.38208,2616.7,2616.3,0.00572946]
[1724334497369,0.38208,2616.6,2616.3,0.00572946]
[1724334497570,0.3821,2616.5,2616.3,0.00572946]
[1724334498068,0.38209,2616.6,2616.3,0.00572946]
[1724334498369,0.3821,2616.5,2616.3,0.00572946]
[1724334498672,3.2078,2616.7,2616.3,0.00572946]
[1724334498966,0.75496,2616.8,2616.3,0.00572946]
[1724334499165,0.3729,2616.8,2616.7,0.38207]
[1724334499360,0.3729,2616.8,2616.3,3.21352946]
[1724334499568,0.3729,2616.8,2616.7,0.38207]
[1724334499762,1.97711305,2616.9,2616.8,0.38205]
[1724334500367,1.97711305,2616.9,2616.8,4.20365]
[1724334501368,1.97711305,2616.9,2616.8,9.20365]
[1724334501569,1.38669323,2616.9,2616.8,9.20365]
[1724334502564,1.38669323,2616.9,2616.8,10.15879]
[1724334502772,1.38669323,2616.9,2616.8,9.20365]
[1724334503675,3.23e-06,2616.9,2616.8,10.15879]
[1724334503877,3.23e-06,2616.9,2616.8,9.20365]
[1724334504077,8.66916594,2617.7,2616.8,8.8216]
[1724334504372,8.66916594,2617.7,2616.5,0.95524]
[1724334504373,8.66916594,2617.7,2617.3,0.38198]
[1724334504573,8.28723594,2617.7,2617.1,3.2078]
[1724334504876,8.28723594,2617.7,2617.6,0.38194]
[1724334505175,0.38193,2617.7,2617.0,3.2078]
[1724334505381,0.38193,2617.7,2617.3,0.38198]
[1724334505570,0.38194,2617.6,2617.2,0.38199]
[1724334505869,0.38194,2617.6,2617.3,0.38198]
[1724334506075,0.01021324,2617.9,2616.9,0.3592]
[1724334506277,0.38194,2617.6,2617.3,0.38197]
[1724334506576,0.95478,2617.8,2616.9,0.3592]
[1724334506773,0.38194,2617.6,2617.2,0.38198]
[1724334507098,0.38196,2617.5,2616.9,0.3592]
[1724334507278,0.01021324,2617.9,2617.0,3.2078]
[1724334507668,0.39211324,2617.9,2617.6,0.38193]
[1724334507869,0.01021324,2617.9,2617.7,0.38192]
[1724334508171,0.38191,2617.8,2617.5,0.38195]
[1724334508371,0.38193,2617.7,2617.4,0.38196]
[1724334508677,0.38193,2617.7,2617.0,3.591]
[1724334508678,0.38196,2617.5,2617.2,0.382]
[1724334508870,0.382,2617.3,2617.0,0.38202]
[1724334509076,0.38199,2617.3,2617.0,0.38202]
[1724334509278,0.38203,2617.0,2616.7,0.38206]
[1724334509472,3.2078,2616.9,2616.5,0.99645479]
[1724334509674,0.38208,2616.6,2616.5,0.99645479]
[1724334509977,0.348,2616.8,2616.5,0.38209]
[1724334510289,9.77046685,2617.2,2616.3,0.00572946]
[1724334510476,0.38204,2617.0,2616.4,3.2078]
[1724334510702,0.38204,2616.9,2616.6,0.38207]
[1724334510877,0.38205,2616.9,2616.4,3.2078]
[1724334511079,0.38205,2616.9,2616.6,0.38208]
[1724334511472,0.348,2617.3,2616.3,0.00572946]
[1724334511667,0.38207,2616.8,2616.4,0.38211]
[1724334511872,0.38207,2616.8,2616.5,0.3821]
[1724334512078,3.2078,2616.9,2616.3,0.00572946]
[1724334512273,0.38211,2616.5,2616.3,0.00572946]
[1724334512473,0.38211,2616.4,2616.3,0.00572946]
[1724334512674,0.38211,2616.5,2616.3,0.00572946]
[1724334512880,0.38211,2616.4,2616.3,0.00572946]
[1724334513772,0.38211,2616.5,2616.3,0.00572946]
[1724334513975,0.3676,2616.7,2616.3,0.00572946]
[1724334514679,0.38211,2616.4,2616.3,0.00572946]
[1724334514877,1.3374,2616.4,2616.3,0.00572946]
[1724334515181,0.38214,2616.2,2616.1,0.00468118]
[1724334515575,0.3729,2616.3,2616.1,0.38683118]
[1724334515777,0.3729,2616.3,2616.1,0.00468118]
[1724334515984,0.75504,2616.3,2616.1,0.00468118]
[1724334516178,0.38214,2616.2,2616.1,0.00468118]
[1724334516906,0.75504,2616.3,2616.1,0.00468118]
[1724334517389,0.3729,2616.3,2616.1,0.38683118]
[1724334517684,0.00572946,2616.5,2616.1,0.00468118]
[1724334517891,0.00572946,2616.5,2616.4,0.38211]
[1724334518282,0.00572946,2616.5,2616.1,0.00468118]
[1724334518679,0.00572946,2616.5,2616.4,0.38211]
[1724334519380,0.00572946,2616.5,2616.3,0.38212]
[1724334519686,0.00572946,2616.5,2616.2,0.38213]
[1724334519889,0.00572946,2616.5,2616.1,0.00468118]
[1724334520088,0.00572946,2616.5,2616.4,0.38211]
[1724334520483,0.00572946,2616.5,2616.4,4.20371]
[1724334520885,0.00572946,2616.5,2616.2,3.2078]
[1724334521080,0.38213,2616.3,2616.2,3.2078]
[1724334521281,0.00572946,2616.5,2616.1,0.38683118]
[1724334521496,0.38782946,2616.5,2616.2,0.38214]
[1724334521888,0.38214,2616.2,2616.1,0.00468118]
[1724334522288,4.20454,2616.2,2616.1,0.00468118]
[1724334522487,4.56714,2616.2,2616.1,0.00468118]
[1724334522688,12.3928,2616.2,2615.9,0.00572946]
[1724334522891,0.38217,2616.0,2615.9,0.00572946]
[1724334523396,4.58667,2616.0,2615.9,0.00572946]
[1724334523897,4.59126476,2616.0,2615.9,0.0095538]
[1724334524297,4.20909476,2616.0,2615.9,0.0095538]
[1724334524494,0.3822,2615.8,2615.7,3.2078]
[1724334524995,4.2054,2615.8,2615.7,3.2078]
[1724334525596,4.2054,2615.8,2615.7,3.21251401]
[1724334525988,0.38219,2615.9,2615.7,0.00471401]
[1724334526203,0.38669476,2616.0,2615.7,0.00471401]
[1724334526402,0.38669476,2616.0,2615.8,0.38219]
[1724334526595,0.38669476,2616.0,2615.7,0.00471401]
[1724334526596,0.38669476,2616.0,2615.9,0.38219]
[1724334526899,0.38669476,2616.0,2615.8,0.38219]
[1724334527108,3.8224,2615.9,2615.7,0.00471401]
[1724334527295,0.38219,2615.9,2615.7,0.00471401]
[1724334527597,0.3822,2615.8,2615.7,0.00471401]
[1724334528302,4.2054,2615.8,2615.7,0.00471401]
[1724334528897,0.3822,2615.8,2615.7,0.00471401]
[1724334529100,0.38669476,2616.0,2615.7,0.00471401]
[1724334529296,0.3822,2615.8,2615.7,0.00471401]
[1724334529506,0.3822,2615.9,2615.7,0.00471401]
[1724334529802,0.76887476,2616.0,2615.7,0.38692401]
[1724334530007,0.38669476,2616.0,2615.8,0.38219]
[1724334530487,0.38669476,2616.0,2615.7,0.00471401]
[1724334530694,0.3822,2615.8,2615.7,0.00471401]
[1724334531197,0.38669476,2616.0,2615.7,0.38692401]
[1724334531198,0.76887476,2616.0,2615.7,0.38692401]
[1724334531399,0.38669476,2616.0,2615.8,0.38219]
[1724334531699,0.38669476,2616.0,2615.7,0.00471401]
[1724334531899,0.38669476,2616.0,2615.9,3.58999]
[1724334531900,0.00459476,2616.0,2615.9,3.58999]
[1724334532099,0.00459476,2616.0,2615.9,7.41239]
[1724334532895,0.00572946,2616.5,2616.4,0.38211]
[1724334533096,0.00572946,2616.5,2615.9,2.98084009]
[1724334533097,0.38782946,2616.5,2615.9,2.98084009]
[1724334533296,0.00572946,2616.5,2616.2,0.38213]
[1724334533796,0.00981509,2616.5,2616.3,0.38213]
[1724334534105,0.00981509,2616.5,2616.4,0.38211]
[1724334534406,0.00981509,2616.5,2616.1,3.58994]
[1724334534601,0.38213,2616.3,2616.1,3.2078]
[1724334534792,0.00981509,2616.5,2615.9,2.98084009]
[1724334534793,0.95529,2616.4,2615.9,2.98084009]
[1724334534996,4.16309,2616.4,2615.9,2.98084009]
[1724334535297,0.00981509,2616.5,2615.9,2.98084009]
[1724334535495,0.38215,2616.2,2616.0,0.38217]
[1724334535939,0.38216,2616.1,2615.9,2.98084009]
[1724334536101,0.38217,2616.0,2615.9,6.18864009]
[1724334536297,0.95532,2616.4,2615.9,6.57081009]
[1724334536298,0.38216,2616.1,2615.9,6.57081009]
[1724334536611,0.38212,2616.4,2616.2,0.38213]
[1724334536901,0.00981509,2616.5,2616.1,0.38216]
[1724334537204,0.00981509,2616.5,2615.9,3.2078]
[1724334537396,0.38212,2616.4,2616.3,0.38213]
[1724334537603,0.39192509,2616.5,2616.3,0.38213]
[1724334538203,0.38211,2616.4,2616.3,0.38213]
[1724334538599,0.00981509,2616.5,2616.0,0.95544]
[1724334538801,0.00981509,2616.5,2616.4,0.38211]
[1724334539305,0.00981509,2616.5,2616.4,4.20371]
[1724334540003,0.00981509,2616.5,2616.4,0.38211]
[1724334540303,0.00981509,2616.5,2616.4,3.8216]
[1724334540696,0.00981509,2616.5,2616.0,0.3516]
[1724334540896,0.38216,2616.1,2615.5,9.81952946]
[1724334541233,0.38216,2616.1,2615.8,0.3822]
[1724334541503,2.93024743,2616.4,2615.5,3.58932946]
[1724334541504,0.3822,2615.9,2615.5,3.58932946]
[1724334541693,0.3822,2615.8,2615.5,3.58932946]
[1724334541896,0.3822,2615.8,2615.5,3.97155946]
[1724334542093,0.3822,2615.8,2615.5,3.58932946]
[1724334542293,0.3822,2615.8,2615.5,3.21352946]
[1724334542494,0.3822,2615.8,2615.5,3.59576946]
[1724334542691,0.3822,2615.8,2615.5,3.21352946]
[1724334542692,4.2054,2615.8,2615.5,3.21352946]
[1724334542991,3.8232,2615.8,2615.6,0.38223]
[1724334543199,3.8232,2615.8,2615.5,3.59575946]
[1724334543711,4.2054,2615.8,2615.5,3.59575946]
[1724334543895,3.8232,2615.8,2615.5,3.21352946]
[1724334544101,9.2054,2615.8,2615.5,3.21352946]
[1724334544411,4.2054,2615.8,2615.5,3.21352946]
[1724334544610,3.8232,2615.8,2615.5,3.21352946]
[1724334544797,1.97495743,2616.0,2615.7,0.38692401]
[1724334544997,0.3532,2616.1,2615.8,0.38219]
[1724334545300,0.73536,2616.1,2615.7,0.38692401]
[1724334545493,0.3532,2616.1,2615.7,0.00471401]
[1724334545697,0.3532,2616.1,2616.0,0.38217]
[1724334545905,3.2078,2616.3,2616.2,0.38214]
[1724334546411,3.2078,2616.3,2616.1,0.38215]
[1724334546594,3.2078,2616.3,2616.0,0.38216]
[1724334546796,3.2078,2616.3,2615.7,0.00471401]